fUSD/lending_fUSD_20260514
["ID","MTS","AMOUNT","RATE_DAILY","PERIOD"]
[422215215,1778713840000,-225.39312712,0.000149,2]
[422215216,1778713840000,-2671.7760529,0.000149,2]
[422215234,1778713840000,-172.72640061,0.00014986,2]
[422215225,1778713840000,-150.0,0.00014963,2]
[422215213,1778713840000,-5000.0,0.000149,2]
[422215222,1778713840000,-150.0,0.00014917,2]
[422215226,1778713840000,-495.0,0.00014976,2]
[422215231,1778713840000,-150.0,0.00014986,2]
[422215227,1778713840000,-500.0,0.00014985,2]
[422215233,1778713840000,-150.0,0.00014986,2]
[422215223,1778713840000,-495.0,0.00014937,2]
[422215229,1778713840000,-150.62695337,0.00014986,2]
[422215254,1778713840000,-655853.51068575,0.00015,2]
[422215230,1778713840000,-150.0,0.00014986,2]
[422215224,1778713840000,-150.0,0.0001494,2]
[422215209,1778713840000,-389.0,0.00014896,2]
[422215270,1778713842000,-3101.36321665,0.00015,2]
[422215266,1778713842000,-436.61957873,0.000147,2]
[422215267,1778713842000,-151.0,0.00014841,2]
[422215268,1778713842000,-3660.46431213,0.00015,2]
[422215269,1778713842000,-1657.59781955,0.00015,2]
[422215272,1778713842000,-165217.20903586,0.00015,2]
[422215275,1778713842000,-10528.01812798,0.00015,2]
[422215273,1778713842000,-998.38845441,0.00015,2]
[422215271,1778713842000,-166.5326272,0.00014587,2]
[422215274,1778713842000,-4307.74967549,0.00015,2]
[422215279,1778713843000,-6536.10693626,0.00015,2]
[422215277,1778713843000,-743.33980056,0.00015,2]
[422215278,1778713843000,-321.85177153,0.00015,2]
[422215276,1778713843000,-301.96676387,0.00015,2]
[422215281,1778713843000,-1030.1308482,0.00014972,2]
[422215282,1778713843000,-2222.92596407,0.00014972,2]
[422215283,1778713843000,-550.52434579,0.00014972,2]
[422215280,1778713843000,-362.44430246,0.00014972,2]
[422215292,1778713846000,-1161.87425863,0.00014972,2]
[422215291,1778713846000,-723.10028085,0.00014972,2]
[422215290,1778713846000,-291.07971915,0.000147,2]
[422215293,1778713846000,-14721.92574137,0.00015,2]
[422215298,1778713885000,-2000.0,0.000141,2]
[422215299,1778713885000,-2500.0,0.0001414,2]
[422215297,1778713885000,-500.0,0.00013356,2]
[422215302,1778713904000,-682.0,0.00014452,2]
[422215300,1778713904000,-2500.0,0.00014382,2]
[422215301,1778713904000,-682.0,0.00014452,2]
[422215303,1778713904000,-682.0,0.00014452,2]
[422215304,1778713904000,-682.0,0.00014452,2]
[422215305,1778713904000,-682.0,0.00014452,2]
[422215307,1778713904000,-682.0,0.00014452,2]
[422215308,1778713904000,-682.0,0.00014452,2]
[422215309,1778713904000,-492.91587732,0.00014452,2]
[422215306,1778713904000,-682.0,0.00014452,2]
[422215311,1778714155000,152.0,0.00010752,30]
[422215313,1778714331000,203.5,0.00027397,120]
[422215315,1778714915000,8000.0,0.000273,120]
[422215331,1778715031000,-480.69356587,0.00013493,2]
[422215329,1778715031000,-150.0,0.00013488,2]
[422215330,1778715031000,-150.0,0.00013488,2]
[422215328,1778715031000,-150.0,0.00013488,2]
[422215327,1778715031000,-150.0,0.00013488,2]
[422215326,1778715031000,-150.62695337,0.00013488,2]
[422215325,1778715031000,-150.0,0.00013488,2]
[422215319,1778715031000,-150.0,0.00013097,2]
[422215324,1778715031000,-150.0,0.00013488,2]
[422215322,1778715031000,-160.0,0.00013337,2]
[422215321,1778715031000,-208.27114069,0.00013159,2]
[422215317,1778715031000,-163.36,0.00012943,2]
[422215320,1778715031000,-77612.6126,0.00013098,2]
[422215316,1778715031000,-152.0,0.00012943,2]
[422215332,1778715031000,-314.55,0.00013512,2]
[422215323,1778715031000,-175.96174144,0.00013356,2]
[422215334,1778715031000,-22280.36,0.00013603,2]
[422215318,1778715031000,-1200.0,0.00013097,2]
[422215333,1778715031000,-150.0,0.00013603,2]
[422215335,1778715031000,-9999.99,0.00013603,2]
[422215350,1778715031000,-150.0,0.00013834,2]
[422215349,1778715031000,-150.0,0.00013718,2]
[422215352,1778715031000,-150.0,0.00013862,2]
[422215351,1778715031000,-166.66,0.00013836,2]
[422215348,1778715031000,-187.04,0.00013714,2]
[422215345,1778715031000,-255.29,0.000137,2]
[422215347,1778715031000,-150.0,0.000137,2]
[422215354,1778715031000,-993.068,0.00013904,2]
[422215344,1778715031000,-177.53,0.000137,2]
[422215342,1778715031000,-200.0,0.00013699,2]
[422215340,1778715031000,-863.53,0.00013695,2]
[422215338,1778715031000,-9735.2569,0.00013614,2]
[422215341,1778715031000,-2500.0,0.00013699,2]
[422215339,1778715031000,-2000.0,0.0001366,2]
[422215336,1778715031000,-2417.1,0.00013603,2]
[422215337,1778715031000,-4166.8993,0.00013614,2]
[422215343,1778715031000,-166.66,0.00013699,2]
[422215394,1778715032000,-150.0,0.0001441,2]
[422215393,1778715032000,-439.0,0.00014406,2]
[422215397,1778715032000,-150.0,0.00014525,2]
[422215392,1778715032000,-2700.0,0.000144,5]
[422215389,1778715032000,-863.53,0.0001438,2]
[422215390,1778715032000,-166.66,0.00014384,2]
[422215386,1778715032000,-500.0,0.00014352,2]
[422215387,1778715032000,-500.0,0.00014352,2]
[422215385,1778715032000,-500.0,0.00014352,2]
[422215395,1778715032000,-1020.56952892,0.00014476,2]
[422215388,1778715032000,-326.42369351,0.00014352,2]
[422215400,1778715032000,-391.11162478,0.0001455,7]
[422215407,1778715032000,-500.0,0.00014606,2]
[422215399,1778715032000,-447.77971874,0.0001455,7]
[422215406,1778715032000,-500.0,0.00014606,2]
[422215405,1778715032000,-256.84381833,0.00014606,2]
[422215404,1778715032000,-150.0,0.00014606,2]
[422215402,1778715032000,-1020.56952892,0.00014561,2]
[422215401,1778715032000,-201.48174609,0.0001455,7]
[422215403,1778715032000,-600.0,0.000146,5]
[422215391,1778715032000,-1020.56952892,0.00014391,2]
[422215409,1778715032000,-500.0,0.00014606,2]
[422215408,1778715032000,-500.0,0.00014606,2]
[422215410,1778715032000,-500.0,0.00014606,2]
[422215411,1778715032000,-386.09726532,0.00014606,2]
[422215398,1778715032000,-446.51777002,0.0001455,7]
[422215384,1778715032000,-500.0,0.00014352,2]
[422215375,1778715032000,-150.0,0.00014237,2]
[422215382,1778715032000,-1020.56952892,0.00014307,2]
[422215357,1778715032000,-166.66,0.00013973,2]
[422215356,1778715032000,-150.0,0.00013949,2]
[422215358,1778715032000,-863.53,0.00014038,2]
[422215360,1778715032000,-500.0,0.00014065,2]
[422215359,1778715032000,-150.0,0.00014064,2]
[422215361,1778715032000,-172.70139994,0.00014065,2]
[422215362,1778715032000,-500.0,0.00014065,2]
[422215366,1778715032000,-303.90323256,0.00014065,2]
[422215364,1778715032000,-500.0,0.00014065,2]
[422215367,1778715032000,-16862.1758,0.000141,2]
[422215365,1778715032000,-500.0,0.00014065,2]
[422215368,1778715032000,-600.0,0.000141,5]
[422215383,1778715032000,-500.0,0.00014352,2]
[422215363,1778715032000,-500.0,0.00014065,2]
[422215371,1778715032000,-150.0,0.00014179,2]
[422215370,1778715032000,-1020.56952892,0.00014137,2]
[422215372,1778715032000,-1300.0,0.000142,5]
[422215373,1778715032000,-255.0,0.0001421,2]
[422215374,1778715032000,-1020.56952892,0.00014222,2]
[422215412,1778715032000,-195.0,0.00014607,2]
[422215377,1778715032000,-150.0,0.00014237,2]
[422215380,1778715032000,-150.0,0.00014295,2]
[422215376,1778715032000,-150.0,0.00014237,2]
[422215379,1778715032000,-166.66,0.00014247,2]
[422215378,1778715032000,-1400.72151442,0.00014237,2]
[422215381,1778715032000,-2000.0,0.000143,5]
[422215369,1778715032000,-166.66,0.0001411,2]
[422215416,1778715032000,-500.0,0.00014626,2]
[422215396,1778715032000,-3400.0,0.000145,5]
[422215419,1778715032000,-150.0,0.0001464,2]
[422215448,1778715032000,-247.55367309,0.00014864,2]
[422215449,1778715032000,-359.43229607,0.00014867,2]
[422215453,1778715032000,-247.55367309,0.00014874,2]
[422215455,1778715032000,-166.77522326,0.00014877,2]
[422215452,1778715032000,-150.0,0.00014871,2]
[422215450,1778715032000,-389.0,0.00014868,2]
[422215454,1778715032000,-1273.205,0.00014877,2]
[422215456,1778715032000,-247.55367309,0.0001488,2]
[422215451,1778715032000,-247.55367309,0.00014869,2]
[422215457,1778715032000,-1000.0,0.0001488,2]
[422215459,1778715032000,-247.55367309,0.00014885,2]
[422215458,1778715032000,-200.0,0.0001488,2]
[422215447,1778715032000,-359.43229607,0.00014861,2]
[422215463,1778715032000,-6240.9763,0.000149,2]
[422215460,1778715032000,-247.55367309,0.0001489,2]
[422215464,1778715032000,-5000.0,0.000149,2]
[422215462,1778715032000,-247.55367309,0.00014895,2]
[422215466,1778715032000,-225.39312712,0.000149,2]
[422215467,1778715032000,-191.98255793,0.000149,2]
[422215465,1778715032000,-191.98255793,0.000149,2]
[422215468,1778715032000,-600.0,0.000149,5]
[422215469,1778715032000,-1020.56952892,0.000149,2]
[422215470,1778715032000,-2696.6059529,0.000149,2]
[422215471,1778715032000,-247.55367309,0.000149,2]
[422215472,1778715032000,-405.84258087,0.000149,2]
[422215414,1778715032000,-500.0,0.00014626,2]
[422215461,1778715032000,-296.0,0.00014891,2]
[422215446,1778715032000,-597.95828,0.0001486,2]
[422215445,1778715032000,-247.55367309,0.00014859,2]
[422215441,1778715032000,-597.95828,0.0001485,2]
[422215417,1778715032000,-500.0,0.00014626,2]
[422215415,1778715032000,-500.0,0.00014626,2]
[422215413,1778715032000,-150.0,0.00014612,2]
[422215418,1778715032000,-640.23478117,0.00014626,2]
[422215420,1778715032000,-1020.56952892,0.00014646,2]
[422215422,1778715032000,-600.0,0.000147,5]
[422215423,1778715032000,-2319.0,0.000147,2]
[422215421,1778715032000,-194.0531461,0.000147,2]
[422215424,1778715032000,-863.53,0.00014722,2]
[422215426,1778715032000,-150.0,0.00014756,2]
[422215425,1778715032000,-1020.56952892,0.0001473,2]
[422215432,1778715032000,-389.0,0.00014807,2]
[422215442,1778715032000,-247.55367315,0.00014854,2]
[422215427,1778715032000,-389.0,0.00014776,2]
[422215429,1778715032000,-398.0,0.00014793,2]
[422215428,1778715032000,-312.0,0.00014777,2]
[422215440,1778715032000,-597.95828,0.0001485,2]
[422215439,1778715032000,-389.0,0.00014835,2]
[422215444,1778715032000,-503.0,0.00014856,2]
[422215431,1778715032000,-600.0,0.000148,5]
[422215438,1778715032000,-2500.0,0.00014834,2]
[422215443,1778715032000,-359.43229607,0.00014854,2]
[422215436,1778715032000,-389.0,0.00014822,2]
[422215434,1778715032000,-1020.56952892,0.00014815,2]
[422215435,1778715032000,-609.66436814,0.00014819,2]
[422215433,1778715032000,-296.0,0.00014812,2]
[422215430,1778715032000,-2508.0,0.000148,2]
[422215437,1778715032000,-389.0,0.00014827,2]
[422215476,1778715033000,-389.0,0.00014949,2]
[422215474,1778715033000,-340.4511157,0.000149,2]
[422215473,1778715033000,-198.90203311,0.000149,2]
[422215475,1778715033000,-15000.0,0.00014934,2]
[422215477,1778715033000,-236.5488843,0.00014954,2]
[422215482,1778715033000,-781.95418243,0.00014954,2]
[422215480,1778715033000,-2750.32116579,0.00014954,2]
[422215479,1778715033000,-253848.49924391,0.00014954,2]
[422215483,1778715033000,-344.0,0.00014954,2]
[422215481,1778715033000,-57925.97531278,0.00014954,2]
[422215478,1778715033000,-9256.3147777,0.00014954,2]
[422215487,1778715037000,-359.43229607,0.00014874,2]
[422215486,1778715037000,-323.01684358,0.0001455,7]
[422215490,1778715037000,-5006.285373,0.00014954,2]
[422215488,1778715037000,-359.43229607,0.0001488,2]
[422215492,1778715037000,-500.0,0.00014959,2]
[422215491,1778715037000,-37148.7344121,0.00014954,2]
[422215493,1778715037000,-500.0,0.00014959,2]
[422215489,1778715037000,-3266.29013789,0.00014954,2]
[422215524,1778715038000,-500.0,0.00014959,2]
[422215523,1778715038000,-500.0,0.00014959,2]
[422215517,1778715038000,-500.0,0.00014959,2]
[422215516,1778715038000,-500.0,0.00014959,2]
[422215525,1778715038000,-462.54911487,0.00014959,2]
[422215522,1778715038000,-500.0,0.00014959,2]
[422215518,1778715038000,-500.0,0.00014959,2]
[422215532,1778715038000,-500.0,0.00014959,2]
[422215515,1778715038000,-500.0,0.00014959,2]
[422215520,1778715038000,-363.87876756,0.00014959,2]
[422215521,1778715038000,-500.0,0.00014959,2]
[422215535,1778715038000,-500.0,0.00014959,2]
[422215514,1778715038000,-500.0,0.00014959,2]
[422215529,1778715038000,-500.0,0.00014959,2]
[422215528,1778715038000,-500.0,0.00014959,2]
[422215527,1778715038000,-500.0,0.00014959,2]
[422215519,1778715038000,-500.0,0.00014959,2]
[422215513,1778715038000,-500.0,0.00014959,2]
[422215506,1778715038000,-500.0,0.00014959,2]
[422215507,1778715038000,-500.0,0.00014959,2]
[422215494,1778715038000,-500.0,0.00014959,2]
[422215500,1778715038000,-500.0,0.00014959,2]
[422215497,1778715038000,-500.0,0.00014959,2]
[422215499,1778715038000,-500.0,0.00014959,2]
[422215498,1778715038000,-500.0,0.00014959,2]
[422215496,1778715038000,-500.0,0.00014959,2]
[422215495,1778715038000,-500.0,0.00014959,2]
[422215501,1778715038000,-500.0,0.00014959,2]
[422215502,1778715038000,-500.0,0.00014959,2]
[422215503,1778715038000,-500.0,0.00014959,2]
[422215505,1778715038000,-500.0,0.00014959,2]
[422215509,1778715038000,-500.0,0.00014959,2]
[422215510,1778715038000,-500.0,0.00014959,2]
[422215511,1778715038000,-500.0,0.00014959,2]
[422215508,1778715038000,-500.0,0.00014959,2]
[422215531,1778715038000,-500.0,0.00014959,2]
[422215504,1778715038000,-500.0,0.00014959,2]
[422215512,1778715038000,-500.0,0.00014959,2]
[422215533,1778715038000,-500.0,0.00014959,2]
[422215553,1778715038000,-1310.26867814,0.00014999,5]
[422215534,1778715038000,-500.0,0.00014959,2]
[422215556,1778715038000,-500.0,0.00014999,2]
[422215559,1778715038000,-500.0,0.00014999,2]
[422215558,1778715038000,-462.2867712,0.00014999,2]
[422215561,1778715038000,-300.0,0.00014999,2]
[422215572,1778715038000,-150.0,0.00015,2]
[422215562,1778715038000,-300.0,0.00014999,2]
[422215576,1778715038000,-387.94,0.00015,2]
[422215560,1778715038000,-300.0,0.00014999,2]
[422215574,1778715038000,-688278.1423652,0.00015,2]
[422215578,1778715038000,-1000.0,0.00015,2]
[422215564,1778715038000,-300.0,0.00014999,2]
[422215566,1778715038000,-3569.0,0.00015,5]
[422215580,1778715038000,-1000.0,0.00015,2]
[422215568,1778715038000,-2854.0,0.00015,5]
[422215582,1778715038000,-1131.693862,0.00015,2]
[422215583,1778715038000,-1381523.82854658,0.00015,2]
[422215526,1778715038000,-500.0,0.00014959,2]
[422215552,1778715038000,-1310.26867815,0.00014999,5]
[422215548,1778715038000,-151.0,0.00014997,2]
[422215570,1778715038000,-150.0,0.00015,2]
[422215550,1778715038000,-500.0,0.00014999,2]
[422215536,1778715038000,-44913.4947496,0.00014967,2]
[422215537,1778715038000,-389.0,0.00014967,2]
[422215538,1778715038000,-389.0,0.00014971,2]
[422215542,1778715038000,-150.0,0.00014986,2]
[422215530,1778715038000,-500.0,0.00014959,2]
[422215551,1778715038000,-365.07072707,0.00014999,2]
[422215539,1778715038000,-389.0,0.00014975,2]
[422215540,1778715038000,-294.11731351,0.00014986,2]
[422215541,1778715038000,-150.0,0.00014986,2]
[422215544,1778715038000,-172.72640061,0.00014986,2]
[422215545,1778715038000,-263.61706913,0.0001499,2]
[422215546,1778715038000,-263.61706913,0.0001499,2]
[422215547,1778715038000,-263.61706913,0.0001499,2]
[422215549,1778715038000,-151.0,0.00014997,2]
[422215554,1778715038000,-500.0,0.00014999,2]
[422215555,1778715038000,-500.0,0.00014999,2]
[422215557,1778715038000,-500.0,0.00014999,2]
[422215543,1778715038000,-150.0,0.00014986,2]
[422215697,1778715041000,-897596.82518899,0.00015,2]
[422215710,1778715045000,-340.24162284,0.00014887,2]
[422215711,1778715046000,-19.19067323,0.00014887,2]
[422215712,1778715046000,-1085.70116599,0.00015,2]
[422215715,1778715046000,-765.56801084,0.00015,2]
[422215716,1778715046000,-1614.29792467,0.00015,2]
[422215717,1778715046000,-6825.71350668,0.00015,2]
[422215714,1778715046000,-1124.45115733,0.00015,2]
[422215719,1778715046000,-577.0,0.00015,2]
[422215720,1778715046000,-857.0418852,0.00015,2]
[422215718,1778715046000,-1189.33499715,0.00015,2]
[422215713,1778715046000,-21159.62458263,0.00015,2]
[422215738,1778715739000,156.03,7.959e-05,2]
[422215737,1778715739000,156.03,6.998e-05,2]
[422215740,1778715740000,156.03,9.88e-05,2]
[422215739,1778715740000,156.03,8.92e-05,2]
[422215753,1778716231000,-150.0,0.00013488,2]
[422215752,1778716231000,-294.1173135,0.00013488,2]
[422215750,1778716231000,-150.0,0.00012997,2]
[422215751,1778716231000,-1200.0,0.00012997,2]
[422215749,1778716231000,-156.03,0.00012762,2]
[422215744,1778716231000,-221.31443113,0.00011141,2]
[422215746,1778716231000,-156.03,0.00011801,2]
[422215747,1778716231000,-250.0,0.00011925,2]
[422215743,1778716231000,-156.03,0.00010841,2]
[422215745,1778716231000,-196.0,0.00011442,2]
[422215755,1778716231000,-150.0,0.00013488,2]
[422215748,1778716231000,-250.0,0.00011925,2]
[422215756,1778716231000,-150.0,0.00013488,2]
[422215754,1778716231000,-150.0,0.00013488,2]
[422215758,1778716231000,-191.27,0.00013654,2]
[422215768,1778716231000,-250.0,0.00014,2]
[422215766,1778716231000,-194.75,0.00013906,2]
[422215767,1778716231000,-166.17,0.00013951,2]
[422215760,1778716231000,-468.27,0.00013683,2]
[422215762,1778716231000,-2000.0,0.00013715,2]
[422215769,1778716231000,-628.43,0.00014015,2]
[422215757,1778716231000,-150.0,0.0001353,2]
[422215764,1778716231000,-200.0,0.00013804,2]
[422215759,1778716231000,-628.43,0.00013673,2]
[422215770,1778716231000,-255.0,0.00014102,2]
[422215763,1778716231000,-156.03,0.00013722,2]
[422215765,1778716231000,-162.16,0.00013842,2]
[422215761,1778716231000,-2347.25,0.00013699,2]
[422215817,1778716232000,-338.62799202,0.00014899,2]
[422215803,1778716232000,-163.73333326,0.00014874,2]
[422215801,1778716232000,-1561.712,0.00014868,2]
[422215810,1778716232000,-959.36787138,0.00014898,2]
[422215812,1778716232000,-236.93244628,0.00014899,2]
[422215814,1778716232000,-959.36787138,0.00014899,2]
[422215813,1778716232000,-722.4354251,0.00014899,2]
[422215815,1778716232000,-639.8353,0.00014899,2]
[422215820,1778716232000,-338.627992,0.00014899,2]
[422215816,1778716232000,-737.072,0.00014899,2]
[422215808,1778716232000,-959.36787138,0.00014898,2]
[422215827,1778716232000,-1295.79984302,0.000149,2]
[422215818,1778716232000,-338.627992,0.00014899,2]
[422215819,1778716232000,-338.627992,0.00014899,2]
[422215824,1778716232000,-412.70938617,0.000149,2]
[422215823,1778716232000,-284.07908366,0.000149,2]
[422215825,1778716232000,-503.21153017,0.000149,2]
[422215802,1778716232000,-233.307,0.00014868,2]
[422215829,1778716232000,-684.9019485,0.000149,2]
[422215832,1778716232000,-1784.80487419,0.000149,2]
[422215826,1778716232000,-3200.98862681,0.000149,2]
[422215828,1778716232000,-1574.05926929,0.000149,2]
[422215830,1778716232000,-202.92129044,0.000149,2]
[422215833,1778716232000,-13089.23679686,0.000149,2]
[422215821,1778716232000,-338.627992,0.000149,2]
[422215796,1778716232000,-597.95827,0.0001485,2]
[422215793,1778716232000,-6111.0,0.00014814,2]
[422215798,1778716232000,-597.95828,0.0001486,2]
[422215771,1778716232000,-167.49,0.00014214,2]
[422215772,1778716232000,-480.0,0.00014296,2]
[422215773,1778716232000,-628.43,0.00014357,2]
[422215774,1778716232000,-350.0,0.00014358,2]
[422215775,1778716232000,-336.4126508,0.0001455,7]
[422215777,1778716232000,-366.84258094,0.0001455,7]
[422215776,1778716232000,-349.5957594,0.0001455,7]
[422215778,1778716232000,-382.53600296,0.0001455,7]
[422215779,1778716232000,-331.5432602,0.0001455,7]
[422215780,1778716232000,-400.00059426,0.0001455,7]
[422215781,1778716232000,-338.50164172,0.0001455,7]
[422215786,1778716232000,-628.43,0.00014699,2]
[422215783,1778716232000,-152.0,0.0001456,7]
[422215784,1778716232000,-1500.0,0.000146,2]
[422215787,1778716232000,-150.66414301,0.000147,2]
[422215789,1778716232000,-255.51512849,0.000147,2]
[422215782,1778716232000,-336.43600078,0.0001455,7]
[422215785,1778716232000,-195.858872,0.00014607,2]
[422215791,1778716232000,-15857.2068,0.00014777,2]
[422215790,1778716232000,-2315.0,0.000147,2]
[422215792,1778716232000,-467.0,0.00014805,2]
[422215831,1778716232000,-912.17676106,0.000149,2]
[422215805,1778716232000,-350.0,0.00014891,2]
[422215806,1778716232000,-959.36787138,0.00014898,2]
[422215794,1778716232000,-597.95828,0.0001485,2]
[422215800,1778716232000,-500.0,0.0001486,2]
[422215835,1778716232000,-500.0,0.00014933,2]
[422215822,1778716232000,-122.53418545,0.000149,2]
[422215836,1778716232000,-500.0,0.00014933,2]
[422215867,1778716232000,-500.0,0.00014998,2]
[422215868,1778716232000,-500.0,0.00014998,2]
[422215869,1778716232000,-500.0,0.00014998,2]
[422215872,1778716232000,-500.0,0.00014998,2]
[422215875,1778716232000,-500.0,0.00014998,2]
[422215874,1778716232000,-500.0,0.00014998,2]
[422215870,1778716232000,-500.0,0.00014998,2]
[422215873,1778716232000,-500.0,0.00014998,2]
[422215876,1778716232000,-500.0,0.00014998,2]
[422215878,1778716232000,-500.0,0.00014998,2]
[422215877,1778716232000,-500.0,0.00014998,2]
[422215879,1778716232000,-500.0,0.00014998,2]
[422215880,1778716232000,-500.0,0.00014998,2]
[422215886,1778716232000,-500.0,0.00014998,2]
[422215882,1778716232000,-500.0,0.00014998,2]
[422215883,1778716232000,-500.0,0.00014998,2]
[422215881,1778716232000,-500.0,0.00014998,2]
[422215885,1778716232000,-500.0,0.00014998,2]
[422215884,1778716232000,-500.0,0.00014998,2]
[422215887,1778716232000,-500.0,0.00014998,2]
[422215888,1778716232000,-500.0,0.00014998,2]
[422215890,1778716232000,-500.0,0.00014998,2]
[422215889,1778716232000,-500.0,0.00014998,2]
[422215891,1778716232000,-500.0,0.00014998,2]
[422215834,1778716232000,-350.0,0.00014905,2]
[422215865,1778716232000,-500.0,0.00014998,2]
[422215866,1778716232000,-500.0,0.00014998,2]
[422215871,1778716232000,-500.0,0.00014998,2]
[422215861,1778716232000,-500.0,0.00014998,2]
[422215844,1778716232000,-382.79356066,0.0001499,2]
[422215837,1778716232000,-198.7450853,0.00014937,2]
[422215838,1778716232000,-204.7341113,0.00014951,2]
[422215864,1778716232000,-500.0,0.00014998,2]
[422215843,1778716232000,-382.79356066,0.0001499,2]
[422215839,1778716232000,-500.0,0.00014953,2]
[422215842,1778716232000,-382.79356066,0.0001499,2]
[422215841,1778716232000,-172.72640061,0.00014986,2]
[422215845,1778716232000,-151.0,0.00014997,2]
[422215848,1778716232000,-500.0,0.00014998,2]
[422215847,1778716232000,-500.0,0.00014998,2]
[422215846,1778716232000,-151.0,0.00014997,2]
[422215849,1778716232000,-500.0,0.00014998,2]
[422215840,1778716232000,-350.0,0.00014966,2]
[422215851,1778716232000,-500.0,0.00014998,2]
[422215860,1778716232000,-500.0,0.00014998,2]
[422215852,1778716232000,-500.0,0.00014998,2]
[422215862,1778716232000,-182.64278824,0.00014998,2]
[422215863,1778716232000,-500.0,0.00014998,2]
[422215856,1778716232000,-500.0,0.00014998,2]
[422215858,1778716232000,-500.0,0.00014998,2]
[422215859,1778716232000,-500.0,0.00014998,2]
[422215855,1778716232000,-500.0,0.00014998,2]
[422215854,1778716232000,-500.0,0.00014998,2]
[422215853,1778716232000,-500.0,0.00014998,2]
[422215850,1778716232000,-431.30112215,0.00014998,2]
[422215857,1778716232000,-500.0,0.00014998,2]
[422215907,1778716233000,-500.0,0.00014998,2]
[422215903,1778716233000,-152.88564931,0.00014998,2]
[422215909,1778716233000,-500.0,0.00014998,2]
[422215910,1778716233000,-219.5030557,0.00014998,2]
[422215911,1778716233000,-280.4969443,0.00014998,2]
[422215908,1778716233000,-500.0,0.00014998,2]
[422215906,1778716233000,-500.0,0.00014998,2]
[422215904,1778716233000,-500.0,0.00014998,2]
[422215902,1778716233000,-500.0,0.00014998,2]
[422215894,1778716233000,-500.0,0.00014998,2]
[422215900,1778716233000,-500.0,0.00014998,2]
[422215899,1778716233000,-500.0,0.00014998,2]
[422215898,1778716233000,-500.0,0.00014998,2]
[422215897,1778716233000,-500.0,0.00014998,2]
[422215895,1778716233000,-500.0,0.00014998,2]
[422215896,1778716233000,-500.0,0.00014998,2]
[422215892,1778716233000,-500.0,0.00014998,2]
[422215893,1778716233000,-500.0,0.00014998,2]
[422215912,1778716233000,-500.0,0.00014998,2]
[422215901,1778716233000,-500.0,0.00014998,2]
[422215914,1778716233000,-234.06721976,0.00014998,2]
[422215905,1778716233000,-500.0,0.00014998,2]
[422215918,1778716233000,-367.98063931,0.00014998,2]
[422215913,1778716233000,-265.93278024,0.00014998,2]
[422215935,1778716233000,-7344.31189511,0.00014999,2]
[422215933,1778716233000,-17.63212862,0.00014999,2]
[422215932,1778716233000,-959.36787138,0.00014899,2]
[422215931,1778716233000,-500.0,0.00014999,2]
[422215930,1778716233000,-20116.72218912,0.00014999,2]
[422215929,1778716233000,-365.07072707,0.00014999,2]
[422215928,1778716233000,-500.0,0.00014999,2]
[422215926,1778716233000,-1310.26867814,0.00014999,5]
[422215924,1778716233000,-500.0,0.00014998,2]
[422215934,1778716233000,-100886.58088188,0.00014999,2]
[422215925,1778716233000,-500.0,0.00014998,2]
[422215920,1778716233000,-500.0,0.00014998,2]